fUSD/lending_fUSD_20260610
["ID","MTS","AMOUNT","RATE_DAILY","PERIOD"]
[424701062,1781063465000,-1995.79713284,0.0002,2]
[424701070,1781063465000,-4559.0,0.0002,2]
[424701061,1781063465000,-152.0,0.0002,2]
[424701060,1781063465000,-13126.52412456,0.0002,2]
[424701065,1781063465000,-1050.0,0.0002,7]
[424701067,1781063465000,-400.0,0.0002,2]
[424701063,1781063465000,-2500.0,0.0002,2]
[424701066,1781063465000,-463.27,0.0002,2]
[424701072,1781063465000,-3104.59971353,0.0002,30]
[424701068,1781063465000,-714.0,0.0002,2]
[424701069,1781063465000,-2488.0,0.0002,2]
[424701075,1781063465000,-684.0,0.0002,2]
[424701073,1781063465000,-2186.0,0.0002,2]
[424701081,1781063465000,-546.0,0.0002,2]
[424701076,1781063465000,-3594.0,0.0002,2]
[424701055,1781063465000,-200.0,0.0002,2]
[424701071,1781063465000,-835.0,0.0002,2]
[424701051,1781063465000,-3950.0,0.0002,2]
[424701039,1781063465000,-151.0,0.0002,2]
[424701053,1781063465000,-1314.8934037,0.0002,2]
[424701028,1781063465000,-152.0,0.0002,2]
[424701029,1781063465000,-152.0,0.0002,2]
[424701031,1781063465000,-152.0,0.0002,2]
[424701030,1781063465000,-152.0,0.0002,2]
[424701032,1781063465000,-152.0,0.0002,2]
[424701034,1781063465000,-152.0,0.0002,2]
[424701036,1781063465000,-152.0,0.0002,2]
[424701033,1781063465000,-247.89168603,0.0002,2]
[424701035,1781063465000,-167.71986107,0.0002,2]
[424701037,1781063465000,-152.0,0.0002,2]
[424701054,1781063465000,-10115.43083158,0.0002,2]
[424701048,1781063465000,-179.23205666,0.0002,2]
[424701041,1781063465000,-151.0,0.0002,2]
[424701038,1781063465000,-152.0,0.0002,2]
[424701042,1781063465000,-151.0,0.0002,2]
[424701043,1781063465000,-172.17979501,0.0002,2]
[424701044,1781063465000,-198.14,0.0002,2]
[424701045,1781063465000,-4625.144155,0.0002,2]
[424701046,1781063465000,-5292.02170443,0.0002,2]
[424701047,1781063465000,-1557.6145371,0.0002,2]
[424701049,1781063465000,-25986.67820633,0.0002,2]
[424701050,1781063465000,-3976.1277647,0.0002,2]
[424701040,1781063465000,-151.0,0.0002,2]
[424701078,1781063465000,-1366.0,0.0002,2]
[424701077,1781063465000,-800.0,0.0002,2]
[424701080,1781063465000,-500.0,0.0002,2]
[424701105,1781063465000,-500.0,0.0002,2]
[424701120,1781063465000,-500.0,0.0002,2]
[424701110,1781063465000,-500.0,0.0002,2]
[424701111,1781063465000,-500.0,0.0002,2]
[424701109,1781063465000,-500.0,0.0002,2]
[424701113,1781063465000,-500.0,0.0002,2]
[424701112,1781063465000,-500.0,0.0002,2]
[424701114,1781063465000,-500.0,0.0002,2]
[424701119,1781063465000,-500.0,0.0002,2]
[424701117,1781063465000,-500.0,0.0002,2]
[424701103,1781063465000,-500.0,0.0002,2]
[424701116,1781063465000,-500.0,0.0002,2]
[424701121,1781063465000,-500.0,0.0002,2]
[424701123,1781063465000,-500.0,0.0002,2]
[424701128,1781063465000,-500.0,0.0002,2]
[424701126,1781063465000,-500.0,0.0002,2]
[424701125,1781063465000,-500.0,0.0002,2]
[424701122,1781063465000,-500.0,0.0002,2]
[424701127,1781063465000,-500.0,0.0002,2]
[424701129,1781063465000,-500.0,0.0002,2]
[424701124,1781063465000,-500.0,0.0002,2]
[424701079,1781063465000,-379.0,0.0002,2]
[424701115,1781063465000,-500.0,0.0002,2]
[424701104,1781063465000,-500.0,0.0002,2]
[424701118,1781063465000,-500.0,0.0002,2]
[424701102,1781063465000,-500.0,0.0002,2]
[424701083,1781063465000,-500.0,0.0002,2]
[424701101,1781063465000,-500.0,0.0002,2]
[424701084,1781063465000,-500.0,0.0002,2]
[424701074,1781063465000,-877.0,0.0002,2]
[424701082,1781063465000,-500.0,0.0002,2]
[424701086,1781063465000,-500.0,0.0002,2]
[424701096,1781063465000,-500.0,0.0002,2]
[424701089,1781063465000,-500.0,0.0002,2]
[424701088,1781063465000,-500.0,0.0002,2]
[424701087,1781063465000,-500.0,0.0002,2]
[424701090,1781063465000,-500.0,0.0002,2]
[424701091,1781063465000,-500.0,0.0002,2]
[424701085,1781063465000,-500.0,0.0002,2]
[424701092,1781063465000,-500.0,0.0002,2]
[424701097,1781063465000,-500.0,0.0002,2]
[424701100,1781063465000,-500.0,0.0002,2]
[424701106,1781063465000,-500.0,0.0002,2]
[424701098,1781063465000,-500.0,0.0002,2]
[424701107,1781063465000,-500.0,0.0002,2]
[424701108,1781063465000,-500.0,0.0002,2]
[424701095,1781063465000,-500.0,0.0002,2]
[424701093,1781063465000,-500.0,0.0002,2]
[424701094,1781063465000,-500.0,0.0002,2]
[424701099,1781063465000,-500.0,0.0002,2]
[424701174,1781063466000,-150.0,0.0002058,2]
[424701161,1781063466000,-152.0,0.00020028,5]
[424701158,1781063466000,-2000.0,0.0002,7]
[424701163,1781063466000,-225.24,0.00020107,2]
[424701164,1781063466000,-156.97,0.00020107,2]
[424701159,1781063466000,-6931.97,0.0002,2]
[424701162,1781063466000,-632.0,0.0002005,2]
[424701166,1781063466000,-2000.0,0.000202,2]
[424701168,1781063466000,-152.0,0.00020315,6]
[424701169,1781063466000,-1610.6,0.00020381,2]
[424701167,1781063466000,-2005.9555727,0.00020224,2]
[424701171,1781063466000,-21890.24,0.00020548,2]
[424701183,1781063466000,-300.0,0.00020771,2]
[424701175,1781063466000,-150.0,0.0002058,2]
[424701173,1781063466000,-150.0,0.0002058,2]
[424701172,1781063466000,-150.0,0.0002058,2]
[424701176,1781063466000,-150.0,0.0002058,2]
[424701178,1781063466000,-150.0,0.0002058,2]
[424701179,1781063466000,-2078.32597677,0.000206,2]
[424701180,1781063466000,-152.0,0.00020602,7]
[424701181,1781063466000,-23032.67632266,0.000207,2]
[424701184,1781063466000,-241.6875,0.00020772,2]
[424701177,1781063466000,-150.0,0.0002058,2]
[424701185,1781063466000,-310.078125,0.00020772,2]
[424701156,1781063466000,-2078.32597677,0.0002,2]
[424701170,1781063466000,-2078.32597677,0.000204,2]
[424701157,1781063466000,-729.0,0.0002,2]
[424701142,1781063466000,-500.0,0.0002,2]
[424701165,1781063466000,-2078.32597677,0.000202,2]
[424701182,1781063466000,-300.0,0.00020771,2]
[424701131,1781063466000,-500.0,0.0002,2]
[424701130,1781063466000,-500.0,0.0002,2]
[424701141,1781063466000,-500.0,0.0002,2]
[424701132,1781063466000,-500.0,0.0002,2]
[424701133,1781063466000,-500.0,0.0002,2]
[424701134,1781063466000,-500.0,0.0002,2]
[424701136,1781063466000,-500.0,0.0002,2]
[424701135,1781063466000,-500.0,0.0002,2]
[424701139,1781063466000,-500.0,0.0002,2]
[424701137,1781063466000,-500.0,0.0002,2]
[424701138,1781063466000,-500.0,0.0002,2]
[424701160,1781063466000,-891.0,0.0002,2]
[424701140,1781063466000,-500.0,0.0002,2]
[424701144,1781063466000,-500.0,0.0002,2]
[424701145,1781063466000,-500.0,0.0002,2]
[424701147,1781063466000,-500.0,0.0002,2]
[424701146,1781063466000,-500.0,0.0002,2]
[424701150,1781063466000,-812.0,0.0002,2]
[424701149,1781063466000,-500.0,0.0002,2]
[424701148,1781063466000,-500.0,0.0002,2]
[424701153,1781063466000,-1591.0,0.0002,2]
[424701152,1781063466000,-1009.0,0.0002,2]
[424701151,1781063466000,-619.0,0.0002,2]
[424701155,1781063466000,-851.0,0.0002,2]
[424701154,1781063466000,-3597.0,0.0002,2]
[424701143,1781063466000,-500.0,0.0002,2]
[424701186,1781063466000,-693.39197629,0.00020772,2]
[424701187,1781063466000,-209.40437684,0.00020772,2]
[424701199,1781063466000,-151.0,0.00020772,2]
[424701220,1781063466000,-151.0,0.00020772,2]
[424701219,1781063466000,-1536.04360648,0.00020772,2]
[424701221,1781063466000,-1592.87721992,0.00020772,2]
[424701217,1781063466000,-1481.2378076,0.00020772,2]
[424701216,1781063466000,-151.0,0.00020772,2]
[424701222,1781063466000,-209.40437684,0.00020772,2]
[424701223,1781063466000,-152.0,0.00020772,2]
[424701227,1781063466000,-151.0,0.00020772,2]
[424701229,1781063466000,-209.40437684,0.00020772,2]
[424701228,1781063466000,-151.0,0.00020772,2]
[424701226,1781063466000,-721.12765534,0.00020772,2]
[424701232,1781063466000,-151.0,0.00020772,2]
[424701235,1781063466000,-1712.93078311,0.00020772,2]
[424701233,1781063466000,-152.0,0.00020772,2]
[424701234,1781063466000,-151.0,0.00020772,2]
[424701236,1781063466000,-152.0,0.00020772,2]
[424701231,1781063466000,-1651.81367706,0.00020772,2]
[424701238,1781063466000,-151.0,0.00020772,2]
[424701237,1781063466000,-151.0,0.00020772,2]
[424701242,1781063466000,-151.0,0.00020772,2]
[424701240,1781063466000,-500.0,0.00020772,2]
[424701241,1781063466000,-1776.30922209,0.00020772,2]
[424701239,1781063466000,-151.0,0.00020772,2]
[424701243,1781063466000,-152.0,0.00020772,2]
[424701188,1781063466000,-1030.0,0.00020772,2]
[424701218,1781063466000,-152.0,0.00020772,2]
[424701215,1781063466000,-151.0,0.00020772,2]
[424701230,1781063466000,-209.40437684,0.00020772,2]
[424701225,1781063466000,-2080.17592889,0.00020772,2]
[424701213,1781063466000,-1428.38747117,0.00020772,2]
[424701198,1781063466000,-174.61919141,0.00020772,2]
[424701191,1781063466000,-200.0,0.00020772,2]
[424701190,1781063466000,-1068.11,0.00020772,2]
[424701244,1781063466000,-151.0,0.00020772,2]
[424701189,1781063466000,-151.0,0.00020772,2]
[424701193,1781063466000,-1107.63007,0.00020772,2]
[424701194,1781063466000,-1148.61238259,0.00020772,2]
[424701195,1781063466000,-151.0,0.00020772,2]
[424701197,1781063466000,-1191.11104074,0.00020772,2]
[424701196,1781063466000,-693.39197629,0.00020772,2]
[424701200,1781063466000,-1235.18214925,0.00020772,2]
[424701211,1781063466000,-4853.74383408,0.00020772,2]
[424701192,1781063466000,-151.0,0.00020772,2]
[424701214,1781063466000,-9552.16786547,0.00020772,2]
[424701224,1781063466000,-151.0,0.00020772,2]
[424701205,1781063466000,-151.0,0.00020772,2]
[424701203,1781063466000,-151.0,0.00020772,2]
[424701210,1781063466000,-200.0,0.00020772,2]
[424701208,1781063466000,-151.0,0.00020772,2]
[424701204,1781063466000,-1328.27659266,0.00020772,2]
[424701202,1781063466000,-151.0,0.00020772,2]
[424701201,1781063466000,-1280.88388877,0.00020772,2]
[424701207,1781063466000,-151.0,0.00020772,2]
[424701206,1781063466000,-578.20924308,0.00020772,2]
[424701212,1781063466000,-160.0,0.00020772,2]
[424701209,1781063466000,-1377.42282658,0.00020772,2]
[424701297,1781063467000,-745.65223615,0.00020882,2]
[424701289,1781063467000,-151.0,0.00020772,2]
[424701296,1781063467000,-3297.0,0.00020852,2]
[424701286,1781063467000,-500.0,0.00020772,2]
[424701278,1781063467000,-151.0,0.00020772,2]
[424701281,1781063467000,-151.0,0.00020772,2]
[424701282,1781063467000,-151.0,0.00020772,2]
[424701275,1781063467000,-151.0,0.00020772,2]
[424701277,1781063467000,-151.0,0.00020772,2]
[424701283,1781063467000,-500.0,0.00020772,2]
[424701288,1781063467000,-500.0,0.00020772,2]
[424701284,1781063467000,-151.0,0.00020772,2]
[424701285,1781063467000,-151.0,0.00020772,2]
[424701303,1781063467000,-5412.68958227,0.00020937,2]
[424701291,1781063467000,-2078.32597677,0.000208,2]
[424701293,1781063467000,-719.04747942,0.00020827,2]
[424701294,1781063467000,-5033.33235594,0.00020827,2]
[424701292,1781063467000,-1125.0,0.00020808,2]
[424701295,1781063467000,-151.0,0.00020827,2]
[424701290,1781063467000,-551.41049581,0.00020786,2]
[424701300,1781063467000,-152.0,0.00020889,8]
[424701298,1781063467000,-5219.56565311,0.00020882,2]
[424701310,1781063467000,-1212.82035986,0.00021,2]
[424701308,1781063467000,-90142.52962788,0.00021,2]
[424701301,1781063467000,-773.24136889,0.00020937,2]
[424701309,1781063467000,-4625.144155,0.00021,2]
[424701273,1781063467000,-151.0,0.00020772,2]
[424701287,1781063467000,-151.0,0.00020772,2]
[424701279,1781063467000,-151.0,0.00020772,2]
[424701247,1781063467000,-500.0,0.00020772,2]
[424701274,1781063467000,-151.0,0.00020772,2]
[424701248,1781063467000,-151.0,0.00020772,2]
[424701299,1781063467000,-151.0,0.00020882,2]
[424701246,1781063467000,-151.0,0.00020772,2]
[424701245,1781063467000,-1842.0326633,0.00020772,2]
[424701249,1781063467000,-1910.18787185,0.00020772,2]
[424701251,1781063467000,-151.0,0.00020772,2]
[424701254,1781063467000,-1980.8648231,0.00020772,2]
[424701250,1781063467000,-152.0,0.00020772,2]
[424701252,1781063467000,-500.0,0.00020772,2]
[424701255,1781063467000,-152.0,0.00020772,2]
[424701258,1781063467000,-2054.15682156,0.00020772,2]
[424701256,1781063467000,-151.0,0.00020772,2]
[424701259,1781063467000,-151.0,0.00020772,2]
[424701280,1781063467000,-500.0,0.00020772,2]
[424701260,1781063467000,-152.0,0.00020772,2]
[424701270,1781063467000,-500.0,0.00020772,2]
[424701262,1781063467000,-500.0,0.00020772,2]
[424701271,1781063467000,-151.0,0.00020772,2]
[424701261,1781063467000,-151.0,0.00020772,2]
[424701263,1781063467000,-151.0,0.00020772,2]
[424701264,1781063467000,-151.0,0.00020772,2]
[424701267,1781063467000,-151.0,0.00020772,2]
[424701265,1781063467000,-152.0,0.00020772,2]
[424701269,1781063467000,-152.0,0.00020772,2]
[424701266,1781063467000,-151.0,0.00020772,2]
[424701268,1781063467000,-151.0,0.00020772,2]
[424701272,1781063467000,-152.0,0.00020772,2]
[424701276,1781063467000,-500.0,0.00020772,2]
[424701257,1781063467000,-500.0,0.00020772,2]
[424701305,1781063467000,-1253.79837696,0.00020992,2]
[424701253,1781063467000,-151.0,0.00020772,2]
[424701307,1781063467000,-300.0,0.00020999,2]
[424701339,1781063467000,-151.0,0.00021102,2]
[424701338,1781063467000,-862.28603014,0.00021102,2]
[424701343,1781063467000,-2078.32597677,0.000212,2]
[424701344,1781063467000,-1661.2750449,0.000212,2]
[424701342,1781063467000,-152.0,0.00021176,9]
[424701345,1781063467000,-927.27566594,0.00021212,2]
[424701346,1781063467000,-151.0,0.00021212,2]
[424701341,1781063467000,-151.0,0.00021157,2]
[424701349,1781063467000,-500.0,0.0002127,2]
[424701354,1781063467000,-719.04747942,0.0002132,2]
[424701351,1781063467000,-310.078125,0.0002132,2]
[424701352,1781063467000,-217.15233878,0.0002132,2]
[424701357,1781063467000,-151.0,0.0002132,2]
[424701340,1781063467000,-894.19061325,0.00021157,2]
[424701350,1781063467000,-688.76,0.000213,2]
[424701358,1781063467000,-200.0,0.0002132,2]
[424701356,1781063467000,-151.0,0.0002132,2]
[424701368,1781063467000,-302300.3175207,0.0002138,2]
[424701359,1781063467000,-9905.59807649,0.0002132,2]
[424701355,1781063467000,-181.08010149,0.0002132,2]
[424701361,1781063467000,-2157.14243826,0.0002132,2]
[424701360,1781063467000,-217.15233878,0.0002132,2]
[424701363,1781063467000,-151.0,0.0002132,2]
[424701362,1781063467000,-217.15233878,0.0002132,2]
[424701364,1781063467000,-997.16350561,0.00021322,2]
[424701365,1781063467000,-151.0,0.00021322,2]
[424701367,1781063467000,-4778.31,0.0002137,2]
[424701302,1781063467000,-151.0,0.00020937,2]
[424701353,1781063467000,-200.0,0.0002132,2]
[424701347,1781063467000,-961.58486558,0.00021267,2]
[424701366,1781063467000,-157124.092278,0.00021354,2]
[424701348,1781063467000,-151.0,0.00021267,2]
[424701336,1781063467000,-933.0,0.000211,2]
[424701304,1781063467000,-801.85129954,0.00020992,2]
[424701322,1781063467000,-379.0,0.00021,2]
[424701312,1781063467000,-714.0,0.00021,2]
[424701323,1781063467000,-2078.32597677,0.00021,2]
[424701314,1781063467000,-4559.0,0.00021,2]
[424701318,1781063467000,-684.0,0.00021,2]
[424701319,1781063467000,-3594.0,0.00021,2]
[424701311,1781063467000,-200.16926219,0.00021,2]
[424701316,1781063467000,-2186.0,0.00021,2]
[424701313,1781063467000,-2488.0,0.00021,2]
[424701317,1781063467000,-877.0,0.00021,2]
[424701315,1781063467000,-835.0,0.00021,2]
[424701321,1781063467000,-1366.0,0.00021,2]
[424701306,1781063467000,-151.0,0.00020992,2]
[424701324,1781063467000,-1661.2750449,0.00021,2]
[424701320,1781063467000,-800.0,0.00021,2]
[424701337,1781063467000,-419.0,0.000211,2]
[424701329,1781063467000,-151.0,0.00021047,2]
[424701331,1781063467000,-2504.45,0.00021087,2]
[424701326,1781063467000,-2000.0,0.00021,7]
[424701330,1781063467000,-632.0,0.0002105,2]
[424701328,1781063467000,-831.51979762,0.00021047,2]
[424701335,1781063467000,-382.0,0.000211,2]
[424701327,1781063467000,-891.0,0.00021,2]
[424701325,1781063467000,-729.0,0.00021,2]
[424701333,1781063467000,-1358.0,0.000211,2]
[424701332,1781063467000,-3556.0,0.000211,2]
[424701334,1781063467000,-1274.0,0.000211,2]
[424701403,1781063468000,-151.0,0.00021465,2]
[424701414,1781063468000,-279.757438,0.00021499,2]
[424701409,1781063468000,-151.0,0.00021499,2]
[424701404,1781063468000,-239.344721,0.00021465,2]
[424701406,1781063468000,-239.344721,0.00021465,2]
[424701402,1781063468000,-151.0,0.00021465,2]
[424701401,1781063468000,-151.0,0.00021465,2]
[424701398,1781063468000,-1661.2750449,0.000214,2]
[424701405,1781063468000,-239.344721,0.00021465,2]
[424701397,1781063468000,-2078.32597677,0.000214,2]
[424701407,1781063468000,-239.344721,0.00021465,2]
[424701408,1781063468000,-169.929416,0.00021496,2]
[424701416,1781063468000,-862.799608,0.00021499,2]
[424701417,1781063468000,-253.626942,0.00021499,2]
[424701419,1781063468000,-300.0,0.00021499,3]
[424701410,1781063468000,-151.0,0.00021499,2]
[424701412,1781063468000,-151.0,0.00021499,2]
[424701411,1781063468000,-862.799608,0.00021499,2]
[424701413,1781063468000,-862.799608,0.00021499,2]
[424701415,1781063468000,-862.799608,0.00021499,2]
[424701421,1781063468000,-253.626942,0.00021499,2]
[424701431,1781063468000,-5259.416845,0.00021499,2]
[424701420,1781063468000,-300.0,0.00021499,3]
[424701400,1781063468000,-152.0,0.00021464,10]
[424701432,1781063468000,-477.384432,0.00021499,2]
[424701418,1781063468000,-300.0,0.00021499,3]
[424701399,1781063468000,-172.0,0.00021406,2]
[424701377,1781063468000,-151.0,0.0002138,2]
[424701390,1781063468000,-556.403067,0.0002138,2]
[424701424,1781063468000,-253.626942,0.00021499,2]
[424701371,1781063468000,-39733.0775054,0.0002138,2]
[424701372,1781063468000,-5163.4614455,0.0002138,2]
[424701373,1781063468000,-481778.6517856,0.0002138,2]
[424701369,1781063468000,-9086.9888859,0.0002138,2]
[424701370,1781063468000,-3358.8871575,0.0002138,2]
[424701379,1781063468000,-2680.313307,0.0002138,2]
[424701380,1781063468000,-2680.313307,0.0002138,2]
[424701374,1781063468000,-2881.5279527,0.0002138,2]
[424701382,1781063468000,-2680.313307,0.0002138,2]
[424701383,1781063468000,-602.027517,0.0002138,2]
[424701381,1781063468000,-2680.313307,0.0002138,2]
[424701389,1781063468000,-151.0,0.0002138,2]
[424701384,1781063468000,-602.027517,0.0002138,2]
[424701375,1781063468000,-144044.2597425,0.0002138,2]
[424701376,1781063468000,-84220.8712505,0.0002138,2]
[424701386,1781063468000,-602.027517,0.0002138,2]
[424701394,1781063468000,-151.0,0.0002138,2]
[424701396,1781063468000,-2000.0,0.000214,2]
[424701395,1781063468000,-187.354788,0.0002138,2]
[424701388,1781063468000,-556.403067,0.0002138,2]
[424701393,1781063468000,-151.0,0.0002138,2]
[424701385,1781063468000,-602.027517,0.0002138,2]
[424701387,1781063468000,-556.403067,0.0002138,2]
[424701391,1781063468000,-151.0,0.0002138,2]
[424701392,1781063468000,-556.403067,0.0002138,2]
[424701378,1781063468000,-151.0,0.0002138,2]
[424701422,1781063468000,-300.0,0.00021499,3]
[424701437,1781063468000,-225.87206486,0.000215,2]
[424701423,1781063468000,-300.0,0.00021499,3]
[424701466,1781063468000,-5000.0,0.00021918,2]
[424701465,1781063468000,-1878.10894585,0.00021918,2]
[424701458,1781063468000,-2236.95670847,0.00021868,2]
[424701461,1781063468000,-1200.0,0.000219,10]
[424701462,1781063468000,-2078.32597677,0.000219,2]
[424701460,1781063468000,-151.0,0.00021868,2]
[424701459,1781063468000,-225.18697532,0.00021868,2]
[424701463,1781063468000,-1661.2750449,0.000219,2]
[424701467,1781063468000,-250.0,0.00021918,2]
[424701471,1781063468000,-250.0,0.00021918,2]
[424701469,1781063468000,-250.0,0.00021918,2]
[424701472,1781063468000,-250.0,0.00021918,2]
[424701468,1781063468000,-250.0,0.00021918,2]
[424701470,1781063468000,-250.0,0.00021918,2]
[424701476,1781063468000,-250.0,0.00021918,2]
[424701473,1781063468000,-250.0,0.00021918,2]
[424701474,1781063468000,-250.0,0.00021918,2]
[424701475,1781063468000,-250.0,0.00021918,2]
[424701477,1781063468000,-250.0,0.00021918,2]
[424701426,1781063468000,-5259.416845,0.00021499,2]
[424701478,1781063468000,-250.0,0.00021918,2]
[424701481,1781063468000,-250.0,0.00021918,2]
[424701480,1781063468000,-250.0,0.00021918,2]
[424701482,1781063468000,-250.0,0.00021918,2]
[424701483,1781063468000,-250.0,0.00021918,2]
[424701464,1781063468000,-160.0,0.00021917,2]
[424701456,1781063468000,-10272.10520532,0.00021868,2]
[424701479,1781063468000,-250.0,0.00021918,2]
[424701455,1781063468000,-200.0,0.00021868,2]
[424701457,1781063468000,-225.18697532,0.00021868,2]
[424701427,1781063468000,-477.384432,0.00021499,2]
[424701425,1781063468000,-253.626942,0.00021499,2]
[424701429,1781063468000,-477.384432,0.00021499,2]
[424701430,1781063468000,-5259.416845,0.00021499,2]
[424701433,1781063468000,-477.384432,0.00021499,2]
[424701438,1781063468000,-46396.43631767,0.0002156,2]
[424701435,1781063468000,-151.0,0.00021499,2]
[424701436,1781063468000,-58518.65139691,0.000215,2]
[424701439,1781063468000,-151.0,0.0002156,2]
[424701442,1781063468000,-1232.0,0.00021592,7]
[424701434,1781063468000,-151.0,0.00021499,2]
[424701440,1781063468000,-151.0,0.0002156,2]
[424701428,1781063468000,-5259.416845,0.00021499,2]
[424701441,1781063468000,-500.0,0.00021562,2]
[424701443,1781063468000,-1661.2750449,0.000216,2]
[424701454,1781063468000,-151.0,0.00021868,2]
[424701452,1781063468000,-187.78006524,0.00021868,2]
[424701451,1781063468000,-750.267022,0.00021868,2]
[424701453,1781063468000,-151.0,0.00021868,2]
[424701445,1781063468000,-2078.32597677,0.000217,2]
[424701450,1781063468000,-200.0,0.00021868,2]
[424701446,1781063468000,-152.0,0.00021751,11]
[424701449,1781063468000,-225.18697532,0.00021868,2]
[424701448,1781063468000,-310.078125,0.00021868,2]
[424701444,1781063468000,-6931.97,0.00021692,2]
[424701447,1781063468000,-1125.0,0.00021848,2]
[424701505,1781063469000,-189.73608815,0.00021918,30]
[424701506,1781063469000,-500.0,0.00021918,30]
[424701507,1781063469000,-166.0,0.00021918,2]
[424701512,1781063469000,-500.0,0.0002197,2]
[424701513,1781063469000,-503.80094893,0.00021999,2]
[424701511,1781063469000,-200.0,0.00021918,2]
[424701510,1781063469000,-150.0,0.00021918,2]
[424701509,1781063469000,-166.0,0.00021918,2]
[424701516,1781063469000,-816.33707215,0.00022,7]
[424701520,1781063469000,-450.0,0.00022,2]
[424701515,1781063469000,-4625.144155,0.00022,2]
[424701519,1781063469000,-300.0,0.00022,21]
[424701522,1781063469000,-2488.0,0.00022,2]
[424701518,1781063469000,-300.0,0.00022,2]
[424701521,1781063469000,-714.0,0.00022,2]
[424701523,1781063469000,-4559.0,0.00022,2]
[424701524,1781063469000,-835.0,0.00022,2]
[424701532,1781063469000,-379.0,0.00022,2]
[424701533,1781063469000,-2000.0,0.00022,2]
[424701517,1781063469000,-160.0,0.00022,2]
[424701508,1781063469000,-166.0,0.00021918,2]
[424701492,1781063469000,-151.0,0.00021918,2]
[424701514,1781063469000,-2000.0,0.00022,7]
[424701489,1781063469000,-250.0,0.00021918,2]
[424701488,1781063469000,-250.0,0.00021918,2]
[424701486,1781063469000,-250.0,0.00021918,2]
[424701487,1781063469000,-250.0,0.00021918,2]
[424701485,1781063469000,-250.0,0.00021918,2]
[424701484,1781063469000,-250.0,0.00021918,2]
[424701490,1781063469000,-250.0,0.00021918,2]
[424701493,1781063469000,-151.0,0.00021918,2]
[424701494,1781063469000,-151.0,0.00021918,2]
[424701502,1781063469000,-166.0,0.00021918,2]
[424701501,1781063469000,-166.0,0.00021918,2]
[424701499,1781063469000,-1008.28,0.00021918,2]
[424701500,1781063469000,-166.0,0.00021918,2]
[424701491,1781063469000,-399.430311,0.00021918,2]
[424701498,1781063469000,-261.737238,0.00021918,2]
[424701495,1781063469000,-151.0,0.00021918,2]
[424701497,1781063469000,-151.0,0.00021918,2]
[424701496,1781063469000,-151.0,0.00021918,2]
[424701504,1781063469000,-166.0,0.00021918,2]
[424701503,1781063469000,-166.0,0.00021918,2]
[424701525,1781063469000,-2186.0,0.00022,2]
[424701550,1781063469000,-150.0,0.000221,2]
[424701530,1781063469000,-800.0,0.00022,2]
[424701558,1781063469000,-152.0,0.00022325,13]
[424701548,1781063469000,-150.0,0.000221,2]
[424701556,1781063469000,-217.15233878,0.00022141,2]
[424701557,1781063469000,-308.24,0.000222,2]